bitfinex/quotes_BTCUSD_20211001
["timestamp","ask_amount","ask_price","bid_price","bid_amount"]
[1633115960901,0.00698111,47960.0,47959.0,2.51526467]
[1633115961100,0.023,47962.0,47960.0,0.00014298]
[1633115961501,0.023,47962.0,47961.0,0.00013106]
[1633115961709,0.20845221,47963.0,47961.0,0.00013106]
[1633115962102,0.20845221,47963.0,47962.0,0.00011914]
[1633115962302,0.23345221,47963.0,47962.0,0.00011914]
[1633115963502,0.20845221,47963.0,47962.0,0.00011914]
[1633115964305,0.23345221,47963.0,47962.0,0.02811914]
[1633115964904,0.28690221,47963.0,47962.0,0.02811914]
[1633115965303,0.07845,47963.0,47962.0,0.02939915]
[1633115965506,0.07845,47963.0,47962.0,0.04337265]
[1633115965903,0.07845,47963.0,47962.0,0.34504857]
[1633115966103,0.05345,47963.0,47962.0,0.31704857]
[1633115966303,0.08345,47963.0,47962.0,0.33604857]
[1633115966919,0.08345,47963.0,47962.0,2.2658651]
[1633115967110,0.08345,47963.0,47962.0,2.48477507]
[1633115967111,0.10591281,47963.0,47962.0,2.48477507]
[1633115967308,0.10591281,47963.0,47962.0,2.80289166]
[1633115967708,0.07491281,47963.0,47962.0,2.78389166]
[1633115968106,0.07491281,47963.0,47962.0,2.95650715]
[1633115968311,0.20841903,47978.0,47976.0,1.34807426]
[1633115968513,0.10095667,47990.0,47978.0,0.20841903]
[1633115968707,0.10095667,47990.0,47989.0,0.00121161]
[1633115968909,0.10095667,47990.0,47989.0,0.00129527]
[1633115969110,0.10114719,47990.0,47989.0,0.00129527]
[1633115969510,0.10114719,47990.0,47989.0,2.29915287]
[1633115970107,0.10114719,47990.0,47989.0,0.00129527]
[1633115970309,0.10114719,47990.0,47978.0,0.11918349]
[1633115970310,0.12914719,47990.0,47982.0,0.00128994]
[1633115970512,0.12914719,47990.0,47983.0,0.35111851]
[1633115970710,0.12895667,47990.0,47984.0,0.22509754]
[1633115971108,0.00013099,47985.0,47984.0,0.22509754]
[1633115972311,0.03613099,47985.0,47984.0,0.22509754]
[1633115972713,0.03613099,47985.0,47982.0,0.00128994]
[1633115972714,0.04744338,47985.0,47982.0,0.00128994]
[1633115973112,0.00010718,47983.0,47982.0,0.00128994]
[1633115973312,0.00010718,47983.0,47978.0,0.11918349]
[1633115973713,7.146e-05,47980.0,47978.0,0.11918349]
[1633115974312,7.146e-05,47980.0,47978.0,0.12518349]
[1633115974313,0.03307146,47980.0,47978.0,0.12518349]
[1633115974714,0.03307146,47980.0,47979.0,0.18917578]
[1633115975110,0.03307146,47980.0,47978.0,0.12518349]
[1633115975514,0.03307146,47980.0,47978.0,0.11918349]
[1633115975712,7.146e-05,47980.0,47979.0,1.73965136]
[1633115976116,7.146e-05,47980.0,47979.0,0.18965136]
[1633115976312,0.03807146,47980.0,47979.0,0.02640902]
[1633115977712,7.146e-05,47980.0,47979.0,0.02640902]
[1633115977913,7.146e-05,47980.0,47979.0,0.21597215]
[1633115978112,0.01136554,47980.0,47979.0,0.18956313]
[1633115978313,0.04436554,47980.0,47979.0,0.005]
[1633115979118,0.04436554,47980.0,47979.0,0.20095584]
[1633115979718,0.04436554,47980.0,47979.0,0.19595584]
[1633115979719,0.01136554,47980.0,47979.0,0.19595584]
[1633115980114,0.01136554,47980.0,47979.0,0.19083424]
[1633115980312,0.04436554,47980.0,47979.0,1.956]
[1633115980513,0.04436554,47980.0,47979.0,0.006]
[1633115981712,0.01136554,47980.0,47978.0,0.11918349]
[1633115981916,7.146e-05,47980.0,47979.0,1.12640902]
[1633115982113,7.146e-05,47980.0,47979.0,0.02640902]
[1633115982314,0.03207146,47980.0,47979.0,0.02640902]
[1633115983714,0.03207146,47980.0,47978.0,0.11918349]
[1633115983715,0.0113656,47980.0,47978.0,0.11918349]
[1633115983915,0.9688301,47979.0,47978.0,0.11918349]
[1633115984117,0.02005608,47979.0,47978.0,0.11918349]
[1633115984314,1.13005608,47979.0,47978.0,0.11918349]
[1633115984515,1.5535057,47979.0,47978.0,0.11918349]
[1633115984717,1.92441173,47979.0,47978.0,0.11918349]
[1633115984919,2.23823008,47979.0,47978.0,0.07890771]
[1633115986316,2.26923008,47979.0,47978.0,0.07890771]
[1633115987520,2.26923008,47979.0,47978.0,0.10532342]
[1633115987722,2.23823008,47979.0,47978.0,0.10532342]
[1633115988322,2.26923008,47979.0,47978.0,0.10532342]
[1633115989123,2.26923008,47979.0,47978.0,0.07890771]
[1633115989722,2.23823008,47979.0,47978.0,0.07890771]
[1633115990122,0.208468,47971.0,47962.0,0.00011914]
[1633115990393,0.00129183,47963.0,47962.0,0.00011914]
[1633115990525,1.25,47962.0,47952.0,0.00107505]
[1633115990725,0.02012193,47963.0,47952.0,0.00107505]
[1633115990925,1.1105301,47962.0,47952.0,0.00107505]
[1633115991123,1.42186632,47962.0,47952.0,0.22554368]
[1633115991522,0.31275,47958.0,47952.0,0.22554368]
[1633115991725,0.31275,47958.0,47952.0,0.22054368]
[1633115992125,0.0005301,47957.0,47952.0,0.22054368]
[1633115992326,0.00120174,47953.0,47952.0,0.029]
[1633115992528,0.31399074,47953.0,47952.0,0.029]
[1633115992724,0.33229074,47953.0,47952.0,0.029]
[1633115993123,0.21565267,47953.0,47952.0,0.05552958]
[1633115993525,0.21691089,47953.0,47952.0,0.05552958]
[1633115993724,0.21565267,47953.0,47952.0,0.05552958]
[1633115993925,0.21565267,47953.0,47952.0,0.02652958]
[1633115993926,0.0183,47953.0,47952.0,0.02652958]
[1633115994126,0.0183,47953.0,47952.0,0.26066744]
[1633115994324,0.0443,47953.0,47952.0,0.05452958]
[1633115994528,0.0448301,47953.0,47952.0,0.028]
[1633115994725,0.05602505,47953.0,47952.0,0.028]
[1633115995124,0.36877205,47953.0,47952.0,0.028]
[1633115995325,0.05549495,47953.0,47952.0,0.028]
[1633115995527,0.3341306,47953.0,47952.0,0.028]
[1633115995725,0.3081306,47953.0,47951.0,0.0058]
[1633115995926,0.0005301,47952.0,47951.0,0.0058]
[1633115996124,0.0188301,47952.0,47951.0,0.0058]
[1633115996324,0.0188301,47952.0,47951.0,0.03193109]
[1633115996924,0.0183,47952.0,47951.0,0.03193109]
[1633115997527,0.0183,47952.0,47951.0,0.02693109]
[1633115997726,0.0188301,47952.0,47951.0,0.02693109]
[1633115997926,0.0183,47952.0,47951.0,0.02693109]
[1633115998526,0.1573,47952.0,47951.0,0.01793109]
[1633115998724,0.1573,47952.0,47951.0,0.00093109]
[1633115998926,0.1283,47952.0,47951.0,0.00093109]
[1633115999398,0.11,47952.0,47951.0,0.22538938]
[1633115999528,0.0804323,47952.0,47951.0,0.43116758]
[1633115999729,0.0804323,47952.0,47951.0,0.22538938]
[1633116000127,0.0804323,47952.0,47951.0,0.41774015]
[1633116000528,0.1254323,47952.0,47951.0,0.41774015]
[1633116000731,0.1254323,47952.0,47951.0,0.73039615]
[1633116000928,0.1254323,47952.0,47951.0,0.31484538]
[1633116001127,0.1254323,47952.0,47951.0,0.50344353]
[1633116001331,0.1254323,47952.0,47951.0,0.19078753]
[1633116001730,0.0804323,47952.0,47951.0,0.19078753]
[1633116002530,0.1254323,47952.0,47951.0,0.00218938]
[1633116003732,0.0804323,47952.0,47951.0,0.00218938]
[1633116004532,0.1254323,47952.0,47951.0,0.45129036]
[1633116004732,0.1254323,47952.0,47951.0,0.00129036]
[1633116004931,0.1254323,47952.0,47950.0,0.1773599]
[1633116005135,0.1254323,47952.0,47949.0,0.22159899]
[1633116005331,0.1254323,47952.0,47950.0,0.00124704]
[1633116005530,0.1254323,47952.0,47950.0,0.18957947]
[1633116005732,0.0804323,47952.0,47950.0,0.1885744]
[1633116006534,0.1114323,47952.0,47950.0,0.1905744]
[1633116006731,0.1114323,47952.0,47950.0,0.00324704]
[1633116007732,0.0804323,47952.0,47950.0,0.19047833]
[1633116008538,0.1244323,47952.0,47950.0,0.19047833]
[1633116009335,0.1244323,47952.0,47951.0,0.00034178]
[1633116009735,0.0804323,47952.0,47951.0,0.00034178]
[1633116010338,0.0804323,47952.0,47950.0,0.18082011]
[1633116010539,0.1244323,47952.0,47951.0,2.7232]
[1633116010739,0.1244323,47952.0,47951.0,3.035875]
[1633116011146,0.01956389,47974.0,47953.0,2.5]
[1633116011406,1.0481,47976.0,47953.0,2.5]
[1633116011407,1.126,47975.0,47954.0,0.53371944]
[1633116011540,1.126,47975.0,47970.0,0.34716948]
[1633116011739,1.126,47975.0,47971.0,0.20496658]
[1633116011938,0.07890771,47978.0,47965.0,0.23913127]
[1633116011939,0.00021442,47971.0,47965.0,0.23913127]
[1633116012138,0.07890771,47978.0,47965.0,0.23913127]
[1633116012341,0.07890771,47978.0,47968.0,0.19617721]
[1633116012342,0.20840991,47976.0,47968.0,0.19617721]
[1633116012539,0.20840991,47976.0,47961.0,0.28503701]
[1633116012540,0.04,47971.0,47961.0,0.33336714]
[1633116012741,0.04,47971.0,47966.0,2.45657526]
[1633116013140,0.00016678,47967.0,47966.0,2.45657526]
[1633116013747,0.33242139,47967.0,47956.0,0.05811635]
[1633116013943,0.00129252,47961.0,47954.0,0.05815465]
[1633116014144,0.0189135,47960.0,47954.0,0.05821363]
[1633116014420,0.0183834,47960.0,47954.0,0.05821363]
[1633116014542,0.0183834,47960.0,47954.0,0.08721363]
[1633116014741,0.0183834,47960.0,47954.0,0.029]
[1633116014943,0.05345,47959.0,47954.0,0.08721968]
[1633116015343,0.312712,47958.0,47954.0,0.08721968]
[1633116015543,0.312712,47958.0,47954.0,0.029]
[1633116015544,0.00121774,47955.0,47954.0,0.029]
[1633116015741,0.01951774,47955.0,47952.0,0.0582706]
[1633116015944,0.0539801,47954.0,47951.0,0.05828404]
[1633116016142,0.0183,47953.0,47950.0,0.05829697]
[1633116016343,0.0539801,47952.0,47949.0,0.0591205]
[1633116016544,0.33106,47951.0,47949.0,0.0591205]
[1633116016743,0.05345,47950.0,47949.0,0.0591205]
[1633116016940,0.07175,47950.0,47949.0,0.0008]
[1633116017344,0.05345,47950.0,47949.0,0.0008]
[1633116017945,0.05345,47950.0,47949.0,3.1049756]
[1633116018144,0.02542575,47950.0,47949.0,2.25407868]
[1633116018343,0.20849251,47957.0,47950.0,0.11775881]
[1633116018541,0.05345,47956.0,47950.0,0.11651693]
[1633116018741,0.05345,47956.0,47949.0,0.34107365]
[1633116018742,0.0539801,47956.0,47949.0,0.34107365]
[1633116018950,0.05345,47956.0,47949.0,0.34107365]
[1633116019142,0.0005301,47955.0,47949.0,0.34107365]
[1633116019343,0.00122002,47954.0,47949.0,0.22454661]
[1633116019946,0.00122002,47954.0,47949.0,0.0008]
[1633116020150,0.312745,47953.0,47949.0,0.0008]
[1633116020418,0.05345,47952.0,47949.0,0.0008]
[1633116020544,0.04845,47952.0,47951.0,0.03213152]
[1633116020744,0.02722002,47954.0,47951.0,0.03160142]
[1633116021346,0.00585733,47951.0,47950.0,1.6]
[1633116021552,0.00585733,47951.0,47949.0,0.39222875]
[1633116021745,0.00585733,47951.0,47949.0,0.36422875]
[1633116022348,0.00585733,47951.0,47950.0,1.020521]
[1633116022547,0.00585733,47951.0,47950.0,0.49398318]
[1633116022748,0.00585733,47951.0,47950.0,0.61048373]
[1633116023146,0.00585733,47951.0,47950.0,0.23702155]
[1633116023349,0.00585733,47951.0,47950.0,0.120521]
[1633116023550,0.00585733,47951.0,47950.0,0.115521]
[1633116023748,0.00585733,47951.0,47949.0,0.40125638]
[1633116023949,0.00585733,47951.0,47949.0,0.36425638]
[1633116024155,0.00585733,47951.0,47949.0,0.2477288]
[1633116024352,0.00128966,47950.0,47949.0,0.0008]
[1633116024550,0.00128966,47950.0,47949.0,0.0328]
[1633116024954,0.05345,47950.0,47949.0,0.0328]
[1633116026153,0.05345,47950.0,47949.0,0.0008]
[1633116026553,0.07545,47950.0,47949.0,0.06467541]
[1633116026756,0.08130187,47950.0,47949.0,0.06467541]
[1633116027351,0.0825457,47950.0,47949.0,0.06467541]
[1633116027554,1.1925457,47950.0,47949.0,0.06467541]
[1633116027756,0.0825457,47950.0,47949.0,0.03267541]
[1633116027960,0.0605457,47950.0,47949.0,0.03267541]
[1633116028153,0.05930187,47950.0,47949.0,0.03267541]
[1633116028554,0.08030187,47950.0,47949.0,0.06367541]
[1633116029953,0.05930187,47950.0,47949.0,0.03267541]
[1633116030552,0.07930187,47950.0,47949.0,0.06367541]
[1633116030954,1.18930187,47950.0,47949.0,0.06367541]
[1633116031156,1.20760187,47950.0,47949.0,0.06367541]
[1633116031355,1.2088056,47950.0,47949.0,0.06367541]
[1633116031552,1.2288056,47950.0,47949.0,0.06367541]
[1633116031958,1.2088056,47950.0,47949.0,0.03267541]
[1633116032155,1.20295373,47950.0,47949.0,0.03267541]
[1633116032356,1.20295373,47950.0,47947.0,0.0008]
[1633116032357,1.40295373,47950.0,47947.0,0.0008]
[1633116032557,0.00123677,47948.0,47947.0,0.0008]
[1633116032758,1.38298677,47948.0,47947.0,0.0008]
[1633116034162,1.37898677,47948.0,47947.0,0.0008]
[1633116034566,1.41098677,47948.0,47947.0,0.0148]
[1633116034959,1.41098677,47948.0,47947.0,0.014]
[1633116035160,1.41227424,47948.0,47947.0,0.014]
[1633116035426,1.70282354,47948.0,47946.0,0.0008]
[1633116035566,2.50127445,47947.0,47943.0,0.0008]
[1633116035762,0.00126926,47944.0,47943.0,0.0008]
[1633116035959,0.01956926,47944.0,47943.0,0.0008]
[1633116036160,0.01956926,47944.0,47943.0,9.535e-05]
[1633116036161,0.27882203,47944.0,47943.0,9.535e-05]
[1633116036360,1.59008228,47944.0,47943.0,9.535e-05]
[1633116036566,1.82815228,47944.0,47927.0,0.0016]
[1633116036764,0.00122315,47942.0,47927.0,0.0016]
[1633116036961,0.01952315,47942.0,47927.0,0.0016]
[1633116037166,0.07020992,47942.0,47927.0,0.22111178]
[1633116037361,1.18020992,47942.0,47927.0,0.22111178]
[1633116037562,1.38020992,47942.0,47941.0,0.03271116]
[1633116037762,1.38020992,47942.0,47927.0,0.22111178]
[1633116037763,1.38020992,47942.0,47938.0,0.0008]
[1633116037961,2.50126176,47939.0,47938.0,0.0008]
[1633116038163,0.27024853,47939.0,47938.0,0.0008]
[1633116038567,1.41324853,47939.0,47938.0,0.0008]
[1633116039169,0.10324853,47939.0,47938.0,0.0008]
[1633116039369,0.30445083,47939.0,47938.0,0.0008]
[1633116039773,1.41445083,47939.0,47938.0,0.0008]
[1633116039972,3.88145083,47939.0,47938.0,0.00072001]
[1633116040569,3.91345083,47939.0,47938.0,0.00072001]
[1633116040771,1.41345083,47939.0,47938.0,0.00072001]
[1633116041171,3.16345083,47939.0,47938.0,0.00072001]
[1633116041976,3.13145083,47939.0,47938.0,1e-08]
[1633116042571,2.5,47938.0,47928.0,0.0012]
[1633116042774,0.27027862,47937.0,47928.0,0.0012]
[1633116042979,0.27027862,47937.0,47936.0,0.00806003]
[1633116043176,0.27027862,47937.0,47933.0,0.00880835]
[1633116043177,2.5,47936.0,47933.0,0.00880835]
[1633116043373,2.77027773,47936.0,47933.0,0.00880835]
[1633116043572,3.13027773,47936.0,47935.0,0.00089537]
[1633116044674,2.50049,47935.0,47933.0,0.00880835]
[1633116044881,3.22847088,47934.0,47933.0,0.00380835]
[1633116045075,2.2,47932.0,47928.0,0.0012]
[1633116045277,2.50120513,47930.0,47928.0,0.0012]
[1633116045473,3.944661,47930.0,47928.0,0.0012]
[1633116045676,3.944661,47930.0,47929.0,0.00127153]
[1633116046277,4.444661,47930.0,47927.0,0.01110499]
[1633116046474,2.50128436,47928.0,47927.0,0.00610499]
[1633116046674,3.88027113,47928.0,47927.0,0.00610499]
[1633116046873,1.75,47926.0,47924.0,0.01105331]
[1633116047072,1.38027113,47928.0,47924.0,0.01105331]
[1633116047073,1.380269,47925.0,47924.0,0.01105331]
[1633116048677,1.41350717,47925.0,47924.0,0.01105331]
[1633116048877,1.44321362,47925.0,47924.0,0.01105331]
[1633116049678,1.19321362,47925.0,47924.0,0.01105331]
[1633116050081,1.16121362,47925.0,47924.0,0.01105331]
[1633116050276,1.27121362,47925.0,47924.0,0.01105331]
[1633116050675,1.30321362,47925.0,47924.0,0.01105331]
[1633116051877,1.27121362,47925.0,47924.0,0.01105331]
[1633116052680,1.30421362,47925.0,47924.0,0.01105331]
[1633116054083,0.26957541,47928.0,47926.0,0.46043777]
[1633116054284,0.208672,47932.0,47926.0,0.46043777]
[1633116054285,0.973,47947.0,47932.0,1.33500583]
[1633116054482,2.1682627,47949.0,47943.0,0.00125918]
[1633116054483,0.1630627,47949.0,47943.0,0.00125918]
[1633116054680,0.02,47950.0,47947.0,0.21122692]
[1633116054879,0.07345,47950.0,47948.0,0.25214131]
[1633116055083,0.10116983,47948.0,47944.0,0.21817459]
[1633116055290,0.00137011,47945.0,47941.0,0.18620888]
[1633116055481,0.0183,47944.0,47942.0,0.0005301]
[1633116055683,0.31289,47938.0,47934.0,0.0005301]
[1633116055882,0.05345,47937.0,47934.0,0.0005301]
[1633116056083,1.11,47936.0,47933.0,0.18121944]
[1633116056281,0.05345,47935.0,47933.0,0.18121944]
[1633116056482,1.16345,47935.0,47934.0,1.2505301]
[1633116056680,1.16345,47935.0,47934.0,0.0005301]
[1633116056881,1.16345,47935.0,47933.0,0.18162468]
[1633116057081,1.16345,47935.0,47933.0,0.0005301]
[1633116057480,1.16345,47935.0,47932.0,1.84427077]
[1633116058482,1.16345,47935.0,47933.0,0.18546522]
[1633116058681,1.16545,47935.0,47932.0,1.84427077]
[1633116059686,1.16545,47935.0,47933.0,0.00800238]
[1633116059687,2.3183,47934.0,47933.0,0.00800238]
[1633116059885,0.30276736,47934.0,47933.0,0.00800238]
[1633116060486,0.69405069,47934.0,47933.0,0.00800238]
[1633116060684,0.69405069,47934.0,47932.0,1.84427077]
[1633116060685,0.18893035,47932.0,47923.0,0.0016]
[1633116060887,0.00127013,47925.0,47923.0,0.0016]
[1633116061084,0.01957013,47925.0,47923.0,0.0016]
[1633116061284,0.07302013,47925.0,47923.0,0.0016]
[1633116061687,1.18302013,47925.0,47923.0,0.0016]
[1633116062086,1.38302013,47925.0,47923.0,0.0016]
[1633116062747,1.41382013,47925.0,47923.0,0.0016]
[1633116063549,0.10275,47925.0,47923.0,0.0016]
[1633116064350,0.07175,47925.0,47923.0,0.0016]
[1633116064749,0.09375,47925.0,47924.0,0.03505331]
[1633116065250,0.09375,47925.0,47924.0,0.23505331]
[1633116066063,0.07175,47925.0,47924.0,0.21105331]
[1633116066662,0.07175,47925.0,47924.0,0.22405331]
[1633116066861,0.09375,47925.0,47924.0,0.22405331]
[1633116068268,0.07175,47925.0,47924.0,0.21105331]
[1633116068663,1.20075,47925.0,47924.0,0.23005331]
[1633116069466,0.09075,47925.0,47924.0,0.23005331]
[1633116070067,0.09075,47925.0,47924.0,0.21105331]
[1633116070271,0.07175,47925.0,47924.0,0.21105331]
[1633116070669,0.11275,47925.0,47924.0,0.21105331]
[1633116070873,1.29645791,47925.0,47924.0,0.21105331]
[1633116071468,1.50511432,47925.0,47924.0,0.21105331]
[1633116071670,0.39511432,47925.0,47924.0,0.21105331]
[1633116072068,0.39511432,47925.0,47924.0,0.40459465]
[1633116072270,0.39511432,47925.0,47924.0,0.21105331]
[1633116072670,0.43611432,47925.0,47924.0,0.21105331]
[1633116072868,0.39511432,47925.0,47924.0,0.21105331]
[1633116073072,0.14545791,47925.0,47924.0,0.21105331]
[1633116074269,0.14345791,47925.0,47924.0,0.21105331]
[1633116074670,0.18245791,47925.0,47924.0,0.21105331]
[1633116074870,1.29245791,47925.0,47924.0,0.21105331]
[1633116076077,1.21975,47925.0,47924.0,0.21105331]
[1633116076274,1.25345798,47925.0,47924.0,0.21105331]
[1633116076476,1.25345798,47925.0,47924.0,0.62879971]
[1633116076477,0.14345798,47925.0,47924.0,0.62879971]
[1633116076673,0.14345798,47925.0,47924.0,1.04559677]
[1633116076674,0.16415798,47925.0,47924.0,1.04559677]
[1633116076874,0.16415798,47925.0,47924.0,0.64612687]
[1633116077076,0.16415798,47925.0,47924.0,0.46145554]
[1633116077274,0.16415798,47925.0,47924.0,0.42292687]
[1633116077473,0.16415798,47925.0,47924.0,0.42239677]
[1633116077674,0.16415798,47925.0,47924.0,0.21232383]
[1633116077875,0.16415798,47925.0,47924.0,0.25090249]
[1633116078276,0.12715798,47925.0,47924.0,0.25090249]
[1633116078475,0.12715798,47925.0,47924.0,0.47521819]
[1633116078678,0.12715798,47925.0,47924.0,0.25201819]
[1633116078874,0.15015798,47925.0,47924.0,0.25201819]
[1633116079479,1.27967389,47925.0,47924.0,0.21105331]
[1633116080076,1.25667389,47925.0,47924.0,0.21105331]
[1633116080476,0.14667389,47925.0,47924.0,0.21105331]
[1633116080680,0.12715798,47925.0,47924.0,0.43549368]
[1633116080884,0.16315798,47925.0,47924.0,0.61611806]
[1633116081077,0.16315798,47925.0,47924.0,0.21229368]
[1633116081475,0.16315798,47925.0,47924.0,0.45873673]
[1633116081679,0.12945,47925.0,47924.0,0.45873673]
[1633116082077,0.09345,47925.0,47924.0,0.45873673]
[1633116082878,0.10945,47925.0,47924.0,0.48673673]
[1633116083480,0.08538203,47925.0,47924.0,0.63294373]
[1633116084079,0.06938203,47925.0,47924.0,0.45873673]
[1633116084281,0.06938203,47925.0,47924.0,0.60451046]
[1633116084683,0.19879003,47930.0,47924.0,0.45873673]
[1633116084879,0.018,47925.0,47924.0,0.48673673]
[1633116085079,0.07145,47925.0,47924.0,0.48673673]
[1633116085281,0.07145,47925.0,47924.0,0.70993673]
[1633116085485,0.07145,47925.0,47924.0,0.85569389]
[1633116085884,0.07145,47925.0,47924.0,0.7963437]
[1633116086085,0.07145,47925.0,47924.0,0.5731437]
[1633116086286,0.05345,47925.0,47924.0,0.5456738]
[1633116086885,0.07645,47925.0,47924.0,0.5746738]
[1633116087083,0.07645,47925.0,47924.0,0.5741437]
[1633116088084,0.05345,47925.0,47924.0,0.5451437]
[1633116088884,0.07245,47925.0,47924.0,0.5741437]
[1633116089488,0.07245,47925.0,47924.0,0.5746738]
[1633116089888,0.07245,47925.0,47924.0,0.7973437]
[1633116090089,0.07245,47925.0,47924.0,0.5451437]
[1633116090288,0.05345,47925.0,47924.0,0.5451437]
[1633116090885,0.07545,47925.0,47924.0,0.5756738]
[1633116091086,0.07545,47925.0,47924.0,0.5751437]
[1633116091487,0.07545,47925.0,47924.0,0.7983437]
[1633116091692,0.07545,47925.0,47924.0,0.5751437]
[1633116092289,0.05345,47925.0,47924.0,0.5451437]
[1633116092885,0.07745,47925.0,47924.0,0.5751437]
[1633116094291,0.05345,47925.0,47924.0,0.5451437]
[1633116094885,0.07345,47925.0,47924.0,0.5751437]
[1633116096289,0.07345,47925.0,47924.0,0.57390333]
[1633116096688,0.05345,47925.0,47924.0,0.54390333]
[1633116096890,0.05645,47925.0,47924.0,0.57290333]
[1633116097491,0.05345,47925.0,47924.0,0.54390333]
[1633116098892,0.06545,47925.0,47924.0,0.57418979]
[1633116100090,0.05345,47925.0,47924.0,0.54518979]
[1633116100691,0.05345,47925.0,47924.0,0.66464801]
[1633116100892,0.07245,47925.0,47924.0,0.69364801]
[1633116101553,0.07245,47925.0,47924.0,0.69311791]
[1633116101953,0.07245,47925.0,47924.0,0.57418979]
[1633116102161,0.1061583,47925.0,47924.0,0.54518979]
[1633116102355,0.0871583,47925.0,47924.0,0.54518979]
[1633116103053,0.0991583,47925.0,47924.0,0.57518979]
[1633116103452,0.06545,47925.0,47924.0,0.57518979]
[1633116103653,0.012,47925.0,47924.0,0.57518979]
[1633116103853,0.06545,47925.0,47924.0,0.57518979]
[1633116104051,0.05345,47925.0,47924.0,0.54518979]
[1633116104456,0.05345,47925.0,47924.0,0.66407912]
[1633116104653,0.05345,47925.0,47924.0,0.54518979]
[1633116104857,0.07045,47925.0,47924.0,0.57418979]
[1633116106156,0.05345,47925.0,47924.0,0.66410076]
[1633116106353,0.05345,47925.0,47924.0,0.66408718]
[1633116106957,0.05345,47925.0,47924.0,0.69308718]
[1633116106958,0.07045,47925.0,47924.0,0.69308718]
[1633116107156,0.07045,47925.0,47924.0,0.57418979]
[1633116107363,0.06545,47925.0,47924.0,0.57418979]
[1633116107557,0.017,47925.0,47924.0,0.57418979]
[1633116107757,0.05070836,47925.0,47924.0,0.57471989]
[1633116107957,0.05070836,47925.0,47924.0,0.88707379]
[1633116108158,0.03370836,47925.0,47924.0,0.85807379]
[1633116108558,0.02649885,47925.0,47924.0,0.85807379]
[1633116108758,0.02649885,47925.0,47924.0,0.88707379]
[1633116108959,0.04449885,47925.0,47924.0,0.57418979]
[1633116109157,0.018,47925.0,47924.0,0.57418979]
[1633116110157,0.30946179,47932.0,47929.0,0.34427838]
[1633116110360,0.30946179,47932.0,47930.0,0.14600668]
[1633116110760,0.30946179,47932.0,47931.0,0.08655077]
[1633116110959,0.32846179,47932.0,47931.0,0.0865493]
[1633116112362,0.30946179,47932.0,47931.0,0.0865493]
[1633116112564,0.30946179,47932.0,47928.0,0.08658549]
[1633116112762,0.30946179,47932.0,47931.0,0.05954436]
[1633116112962,0.34346179,47932.0,47931.0,0.06854436]
[1633116113161,0.37358942,47932.0,47931.0,0.15515076]
[1633116113366,0.37358942,47932.0,47931.0,0.15515015]
[1633116114363,0.33958942,47932.0,47931.0,0.14615015]
[1633116114564,0.30946179,47932.0,47931.0,0.05954436]
[1633116114765,0.30946179,47932.0,47931.0,0.15365071]
[1633116114965,0.34346179,47932.0,47931.0,0.01261489]
[1633116116164,1.45346179,47932.0,47931.0,0.01261489]
[1633116116765,1.41946179,47932.0,47931.0,0.00761489]
[1633116116964,1.45646179,47932.0,47931.0,0.00761489]
[1633116117768,0.34646179,47932.0,47931.0,0.00761489]
[1633116118565,0.34646179,47932.0,47928.0,0.05960534]
[1633116118770,0.37658949,47932.0,47928.0,0.05960534]
[1633116118967,0.41158949,47932.0,47928.0,0.05960534]
[1633116119366,0.33958949,47932.0,47928.0,0.05960534]
[1633116119770,0.312927,47930.0,47928.0,0.05960534]
[1633116120170,0.312927,47930.0,47929.0,0.0076216]
[1633116120972,0.345927,47930.0,47929.0,0.0216216]
[1633116121972,0.146527,47930.0,47929.0,0.0216216]
[1633116122174,0.113527,47930.0,47929.0,0.0076216]
[1633116122575,0.113527,47930.0,47929.0,0.0063216]
[1633116122977,0.147527,47930.0,47929.0,0.0233216]
[1633116124178,0.113527,47930.0,47929.0,0.0063216]
[1633116124377,0.113527,47930.0,47928.0,0.05960534]
[1633116124578,0.1442974,47930.0,47927.0,0.05956211]
[1633116124779,0.0307704,47930.0,47927.0,0.05956211]
[1633116124981,0.05345,47929.0,47928.0,0.014]
[1633116125377,0.05345,47929.0,47928.0,0.07355206]
[1633116125778,0.05345,47929.0,47928.0,0.1616284]
[1633116126180,0.05345,47929.0,47928.0,0.1476284]
[1633116126379,0.05345,47929.0,47928.0,0.05953757]
[1633116126980,0.07445,47929.0,47928.0,0.07553757]
[1633116127379,0.07445,47929.0,47928.0,0.1634324]
[1633116127780,0.07445,47929.0,47928.0,0.016]
[1633116128379,0.05345,47929.0,47927.0,0.05934237]
[1633116128979,0.08445,47929.0,47927.0,0.06934237]
[1633116129584,0.08445,47929.0,47928.0,2.82412824]
[1633116129788,0.4172,47947.0,47932.0,0.30946179]
[1633116129990,1.1094,47946.0,47939.0,0.00121198]
[1633116130184,0.05345,47945.0,47940.0,0.15645816]
[1633116130391,0.05345,47945.0,47941.0,0.22630171]
[1633116130585,0.05345,47945.0,47942.0,0.0005301]
[1633116130789,0.05345,47945.0,47942.0,0.20853]
[1633116130985,0.09045,47945.0,47942.0,0.56716626]
[1633116131184,0.09045,47945.0,47942.0,0.21544348]
[1633116131385,0.09045,47945.0,47944.0,0.00128058]
[1633116131788,0.09061686,47945.0,47944.0,0.00128058]
[1633116132385,0.05361686,47945.0,47944.0,0.00128058]
[1633116132784,0.05361686,47945.0,47944.0,0.21050355]
[1633116132986,0.08661686,47945.0,47944.0,0.22650355]
[1633116134293,0.05361686,47945.0,47944.0,1.33394724]
[1633116134689,0.05361686,47945.0,47944.0,0.43394724]
[1633116134895,0.1664,47963.0,47946.0,2.5]
[1633116135097,0.06030758,47972.0,47962.0,0.00125934]
[1633116135292,0.0004,47973.0,47971.0,0.00125252]
[1633116135893,0.05889781,47979.0,47971.0,0.00125252]
[1633116136090,0.20067633,47981.0,47972.0,0.31479348]
[1633116136295,0.0006,47981.0,47973.0,0.27156038]
[1633116136690,0.312604,47979.0,47974.0,0.00700754]
[1633116136890,0.312604,47979.0,47974.0,0.00676385]
[1633116137093,0.00035733,47975.0,47974.0,0.00676385]
[1633116138697,0.00035733,47975.0,47974.0,0.00799974]
[1633116138898,0.00035733,47975.0,47974.0,0.00824343]
[1633116139096,0.02835733,47975.0,47974.0,0.02924343]
[1633116139296,0.02335733,47975.0,47974.0,2.15792865]
[1633116139497,0.02335733,47975.0,47974.0,0.25768496]
[1633116140761,0.0002,47980.0,47974.0,0.22992111]
[1633116140960,0.03093626,47975.0,47974.0,0.22992111]
[1633116141165,0.05093626,47975.0,47974.0,0.24992111]
[1633116141363,0.05093626,47975.0,47974.0,0.24868522]
[1633116141564,0.05093626,47975.0,47974.0,0.02]
[1633116142163,0.02,47975.0,47974.0,0.02677278]
[1633116142362,0.0002,47980.0,47974.0,0.2275772]